fUST/lending_fUST_20251206
["ID","MTS","AMOUNT","RATE_DAILY","PERIOD"]
[396421593,1764964267641,-500.0,0.00016986,2]
[396421594,1764964267650,-500.0,0.00016986,2]
[396421595,1764964267659,-500.0,0.00016986,2]
[396421596,1764964267668,-500.0,0.00016986,2]
[396421597,1764964267677,-500.0,0.00016986,2]
[396421598,1764964267686,-936.35,0.00016986,2]
[396421599,1764964267696,-500.0,0.00016986,2]
[396421600,1764964267705,-500.0,0.00016986,2]
[396421601,1764964267715,-500.0,0.00016986,2]
[396421602,1764964267724,-500.0,0.00016986,2]
[396421603,1764964267734,-500.0,0.00016986,2]
[396421604,1764964267744,-749.63,0.00016986,2]
[396421605,1764964267754,-521.38198876,0.00016986,2]
[396421606,1764964267763,-1641.15,0.00016986,2]
[396421607,1764964267774,-1076.77,0.00016986,2]
[396421608,1764964267784,-500.0,0.00016986,2]
[396421609,1764964267793,-500.0,0.00016986,2]
[396421610,1764964267804,-500.0,0.00016986,2]
[396421611,1764964267813,-500.0,0.00016986,2]
[396421612,1764964267823,-603.68,0.00016986,2]
[396421613,1764964267833,-500.0,0.00016986,2]
[396421614,1764964267843,-698.96,0.00016986,2]
[396421615,1764964267851,-500.0,0.00016986,2]
[396421616,1764964267861,-1666.18,0.00016986,2]
[396421617,1764964267871,-671.97,0.00016986,2]
[396421618,1764964267882,-502.19,0.00016986,2]
[396421619,1764964267893,-2087.17,0.00016986,2]
[396421620,1764964267902,-500.0,0.00016986,2]
[396421621,1764964267911,-500.0,0.00016986,2]
[396421622,1764964267920,-500.0,0.00016986,2]
[396421623,1764964267929,-516.65,0.00016986,2]
[396421624,1764964267939,-500.0,0.00016986,2]
[396421625,1764964267950,-500.0,0.00016986,2]
[396421626,1764964267959,-2037.83,0.00016986,2]
[396421627,1764964267968,-501.13,0.00016986,2]
[396421628,1764964267978,-500.0,0.00016986,2]
[396421629,1764964267987,-571.62,0.00016986,2]
[396421630,1764964268003,-500.0,0.00016986,2]
[396421631,1764964268092,-1758.23,0.00016986,2]
[396421632,1764964268102,-4101.23,0.00016986,2]
[396421633,1764964268113,-1128.95,0.00016986,2]
[396421634,1764964268123,-500.0,0.00016986,2]
[396421635,1764964268132,-735.18,0.00016986,2]
[396421636,1764964268142,-2336.08,0.00016986,2]
[396421637,1764964268151,-500.0,0.00016986,2]
[396421638,1764964268161,-656.91,0.00016986,2]
[396421639,1764964268171,-500.0,0.00016986,2]
[396421640,1764964268182,-942.22,0.00016986,2]
[396421641,1764964268194,-606.67,0.00016986,2]
[396421642,1764964268206,-500.0,0.00016986,2]
[396421643,1764964268218,-500.0,0.00016986,2]
[396421644,1764964268230,-866.26,0.00016986,2]
[396421645,1764964268242,-500.0,0.00016986,2]
[396421646,1764964268253,-500.0,0.00016986,2]
[396421647,1764964268264,-500.0,0.00016986,2]
[396421648,1764964268275,-500.13,0.00016986,2]
[396421649,1764964268286,-500.0,0.00016986,2]
[396421650,1764964268297,-500.0,0.00016986,2]
[396421651,1764964268306,-500.0,0.00016986,2]
[396421652,1764964268317,-500.0,0.00016986,2]
[396421653,1764964268328,-500.0,0.00016986,2]
[396421654,1764964268338,-748.38,0.00016986,2]
[396421655,1764964268347,-784.77,0.00016986,2]
[396421656,1764964268358,-500.0,0.00016986,2]
[396421657,1764964268368,-3000.65,0.00016986,2]
[396421658,1764964268379,-525.35,0.00016986,2]
[396421659,1764964268389,-500.0,0.00016986,2]
[396421660,1764964268399,-477.51639373,0.00016986,2]
[396421661,1764964268410,-500.0,0.00016986,2]
[396421662,1764964268421,-632.24,0.00016986,2]
[396421663,1764964268431,-500.0,0.00016986,2]
[396421664,1764964268445,-734.19,0.00016986,2]
[396421665,1764964268455,-500.0,0.00016986,2]
[396421666,1764964268465,-500.0,0.00016986,2]
[396421667,1764964268475,-500.0,0.00016986,2]
[396421668,1764964268484,-1121.55,0.00016986,2]
[396421669,1764964268494,-4195.91,0.00016986,2]
[396421670,1764964268505,-500.0,0.00016986,2]
[396421671,1764964268515,-1169.87,0.00016986,2]
[396421672,1764964268524,-500.0,0.00016986,2]
[396421673,1764964268533,-500.0,0.00016986,2]
[396421674,1764964268543,-500.0,0.00016986,2]
[396421675,1764964268552,-1721.78,0.00016986,2]
[396421676,1764964268562,-797.93,0.00016986,2]
[396421677,1764964268571,-500.0,0.00016986,2]
[396421678,1764964268581,-500.0,0.00016986,2]
[396421679,1764964268591,-3352.24,0.00016986,2]
[396421680,1764964268600,-701.25,0.00016986,2]
[396421681,1764964268609,-352.51174789,0.00016986,2]
[396421682,1764964268618,-500.0,0.00016986,2]
[396421683,1764964268627,-1865.02,0.00016986,2]
[396421684,1764964268636,-500.0,0.00016986,2]
[396421685,1764964268646,-500.0,0.00016986,2]
[396421686,1764964268656,-547.35,0.00016986,2]
[396421687,1764964268666,-1140.86,0.00016986,2]
[396421688,1764964268675,-1061.3,0.00016986,2]
[396421689,1764964268685,-500.0,0.00016986,2]
[396421690,1764964268697,-581.3,0.00016986,2]
[396421691,1764964268706,-561.53,0.00016986,2]
[396421692,1764964268716,-1248.52,0.00016986,2]
[396421693,1764964268725,-500.0,0.00016986,2]
[396421694,1764964268734,-500.0,0.00016986,2]
[396421695,1764964268744,-565.64,0.00016986,2]
[396421696,1764964268753,-500.0,0.00016986,2]
[396421697,1764964268762,-1569.73,0.00016986,2]
[396421698,1764964268771,-1818.55,0.00016986,2]
[396421699,1764964268780,-522.2,0.00016986,2]
[396421700,1764964268789,-875.06,0.00016986,2]
[396421701,1764964268798,-500.0,0.00016986,2]
[396421702,1764964268808,-500.0,0.00016986,2]
[396421703,1764964268817,-500.0,0.00016986,2]
[396421704,1764964268827,-1114.54,0.00016986,2]
[396421705,1764964268836,-500.0,0.00016986,2]
[396421706,1764964268846,-500.0,0.00016986,2]
[396421707,1764964268855,-500.0,0.00016986,2]
[396421708,1764964268866,-500.0,0.00016986,2]
[396421709,1764964268876,-1202.31,0.00016986,2]
[396421710,1764964268885,-500.0,0.00016986,2]
[396421711,1764964268895,-1019.58,0.00016986,2]
[396421712,1764964268904,-1283.59,0.00016986,2]
[396421713,1764964268914,-500.0,0.00016986,2]
[396421714,1764964268923,-500.0,0.00016986,2]
[396421715,1764964268933,-1200.75,0.00016986,2]
[396421716,1764964268943,-500.0,0.00016986,2]
[396421717,1764964268952,-506.37,0.00016986,2]
[396421718,1764964268962,-500.0,0.00016986,2]
[396421719,1764964268971,-500.0,0.00016986,2]
[396421720,1764964268980,-1231.58,0.00016986,2]
[396421721,1764964268991,-506.68,0.00016986,2]
[396421722,1764964269003,-654.39,0.00016986,2]
[396421723,1764964269012,-500.0,0.00016986,2]
[396421724,1764964269022,-500.0,0.00016986,2]
[396421725,1764964269031,-500.0,0.00016986,2]
[396421726,1764964269043,-500.0,0.00016986,2]
[396421727,1764964269053,-504.11094003,0.00016986,2]
[396421728,1764964269062,-1113.91,0.00016986,2]
[396421729,1764964269072,-663.62,0.00016986,2]
[396421730,1764964269085,-753.47,0.00016986,2]
[396421731,1764964269094,-1445.18,0.00016986,2]
[396421732,1764964269103,-500.0,0.00016986,2]
[396421733,1764964269112,-500.0,0.00016986,2]
[396421734,1764964269122,-500.0,0.00016986,2]
[396421735,1764964269131,-500.0,0.00016986,2]
[396421736,1764964269140,-500.0,0.00016986,2]
[396421737,1764964269150,-780.5,0.00016986,2]
[396421738,1764964269159,-889.08,0.00016986,2]
[396421739,1764964269168,-500.0,0.00016986,2]
[396421740,1764964269177,-2835.2,0.00016986,2]
[396421741,1764964269186,-500.0,0.00016986,2]
[396421742,1764964269197,-262.59830521,0.00016986,2]
[396421743,1764964269206,-500.0,0.00016986,2]
[396421744,1764964269216,-500.0,0.00016986,2]
[396421745,1764964269225,-500.0,0.00016986,2]
[396421746,1764964269235,-1729.46,0.00016986,2]
[396421747,1764964269245,-500.0,0.00016986,2]
[396421748,1764964269254,-1979.46,0.00016986,2]
[396421749,1764964269264,-575.86,0.00016986,2]
[396421750,1764964269273,-500.0,0.00016986,2]
[396421751,1764964269282,-1316.03,0.00016986,2]
[396421752,1764964269292,-1835.34,0.00016986,2]
[396421753,1764964269302,-500.0,0.00016986,2]
[396421754,1764964269311,-908.87,0.00016986,2]
[396421755,1764964269320,-653.14,0.00016986,2]
[396421756,1764964269329,-500.0,0.00016986,2]
[396421757,1764964269339,-557.4,0.00016986,2]
[396421758,1764964269348,-978.78,0.00016986,2]
[396421759,1764964269358,-500.0,0.00016986,2]
[396421760,1764964269367,-500.0,0.00016986,2]
[396421761,1764964269376,-1274.81,0.00016986,2]
[396421762,1764964269386,-500.0,0.00016986,2]
[396421763,1764964269395,-500.0,0.00016986,2]
[396421764,1764964269404,-500.0,0.00016986,2]
[396421765,1764964269413,-1825.48,0.00016986,2]
[396421766,1764964269422,-1459.61,0.00016986,2]
[396421767,1764964269431,-500.0,0.00016986,2]
[396421768,1764964269440,-500.0,0.00016986,2]
[396421769,1764964269449,-2330.6,0.00016986,2]
[396421770,1764964269458,-1362.88,0.00016986,2]
[396421771,1764964269468,-2129.96,0.00016986,2]
[396421772,1764964269478,-500.0,0.00016986,2]
[396421773,1764964269486,-500.0,0.00016986,2]
[396421774,1764964269496,-500.0,0.00016986,2]
[396421775,1764964269504,-664.95,0.00016986,2]
[396421776,1764964269513,-1189.18,0.00016986,2]
[396421777,1764964269522,-500.0,0.00016986,2]
[396421778,1764964269531,-500.0,0.00016986,2]
[396421779,1764964269540,-989.95,0.00016986,2]
[396421780,1764964269549,-1334.27,0.00016986,2]
[396421781,1764964269559,-1775.43,0.00016986,2]
[396421782,1764964269568,-500.0,0.00016986,2]
[396421783,1764964269577,-500.0,0.00016986,2]
[396421784,1764964269586,-500.0,0.00016986,2]
[396421785,1764964269595,-500.0,0.00016986,2]
[396421786,1764964269604,-500.0,0.00016986,2]
[396421787,1764964269613,-796.25,0.00016986,2]
[396421788,1764964269622,-500.0,0.00016986,2]
[396421789,1764964269632,-500.0,0.00016986,2]
[396421790,1764964269641,-4147.96,0.00016986,2]
[396421791,1764964269651,-285.67396969,0.00016986,2]
[396421792,1764964269660,-500.0,0.00016986,2]
[396421793,1764964269669,-500.0,0.00016986,2]
[396421794,1764964269679,-677.16,0.00016986,2]
[396421795,1764964269688,-500.0,0.00016986,2]
[396421796,1764964269698,-3508.67,0.00016986,2]
[396421797,1764964269707,-3856.98,0.00016986,2]
[396421798,1764964269716,-1405.37,0.00016986,2]
[396421799,1764964269725,-500.0,0.00016986,2]
[396421800,1764964269735,-500.0,0.00016986,2]
[396421801,1764964269744,-8546.16,0.00016986,2]
[396421802,1764964269754,-595.52,0.00016986,2]
[396421803,1764964269763,-2012.27,0.00016986,2]
[396421804,1764964269772,-500.0,0.00016986,2]
[396421805,1764964269781,-760.14,0.00016986,2]
[396421806,1764964269791,-500.0,0.00016986,2]
[396421807,1764964269799,-869.37,0.00016986,2]
[396421808,1764964269809,-2862.43,0.00016986,2]
[396421809,1764964269819,-500.0,0.00016986,2]
[396421810,1764964269828,-500.0,0.00016986,2]
[396421811,1764964269837,-1260.61,0.00016986,2]
[396421812,1764964269846,-27168.59,0.00016986,2]
[396421813,1764964269856,-2573.74,0.00016986,2]
[396421814,1764964269865,-500.0,0.00016986,2]
[396421815,1764964269874,-500.0,0.00016986,2]
[396421816,1764964269883,-1519.74,0.00016986,2]
[396421817,1764964269892,-3739.24,0.00016986,2]
[396421818,1764964269901,-837.97,0.00016986,2]
[396421819,1764964269910,-2210.97,0.00016986,2]
[396421820,1764964269920,-449.32156367,0.00016986,2]
[396421821,1764964269929,-879.68,0.00016986,2]
[396421822,1764964269938,-934.83,0.00016986,2]
[396421823,1764964269947,-1534.0,0.00016986,2]
[396421824,1764964269957,-613.38,0.00016986,2]
[396421825,1764964269966,-1145.34,0.00016986,2]
[396421826,1764964269974,-7737.29,0.00016986,2]
[396421827,1764964269983,-2245.52,0.00016986,2]
[396421828,1764964269992,-2897.13,0.00016986,2]
[396421829,1764964270006,-500.0,0.00016986,2]
[396421830,1764964270015,-3989.26,0.00016986,2]
[396421831,1764964270024,-1590.89,0.00016986,2]
[396421832,1764964270034,-4880.82,0.00016986,2]
[396421833,1764964270046,-500.0,0.00016986,2]
[396421834,1764964270055,-500.0,0.00016986,2]
[396421835,1764964270066,-2037.18,0.00016986,2]
[396421836,1764964270077,-500.0,0.00016986,2]
[396421837,1764964270087,-1939.29,0.00016986,2]
[396421838,1764964270097,-500.0,0.00016986,2]
[396421839,1764964270107,-500.0,0.00016986,2]
[396421840,1764964270117,-603.68,0.00016986,2]
[396421841,1764964270125,-500.0,0.00016986,2]
[396421842,1764964270135,-586.39,0.00016986,2]
[396421843,1764964270144,-500.0,0.00016986,2]
[396421844,1764964270153,-3745.52,0.00016986,2]
[396421845,1764964270162,-1761.7,0.00016986,2]
[396421846,1764964270171,-500.0,0.00016986,2]
[396421847,1764964270180,-500.0,0.00016986,2]
[396421848,1764964270189,-500.0,0.00016986,2]
[396421849,1764964270199,-500.0,0.00016986,2]
[396421850,1764964270208,-1154.72,0.00016986,2]
[396421851,1764964270218,-8082.89,0.00016986,2]
[396421852,1764964270228,-357.76013834,0.00016986,2]
[396421853,1764964270237,-500.0,0.00016986,2]
[396421854,1764964270247,-808.12,0.00016986,2]
[396421855,1764964270256,-303.61029991,0.00016986,2]
[396421856,1764964270265,-1316.55,0.00016986,2]
[396421857,1764964270274,-1061.67,0.00016986,2]
[396421858,1764964270283,-1179.67,0.00016986,2]
[396421859,1764964270292,-500.0,0.00016986,2]
[396421860,1764964270301,-500.0,0.00016986,2]
[396421861,1764964270310,-500.0,0.00016986,2]
[396421862,1764964270319,-548.83,0.00016986,2]
[396421863,1764964270329,-500.0,0.00016986,2]
[396421864,1764964270338,-2735.13,0.00016986,2]
[396421865,1764964270348,-2878.01,0.00016986,2]
[396421866,1764964270358,-500.0,0.00016986,2]
[396421867,1764964270368,-500.0,0.00016986,2]
[396421868,1764964270377,-500.0,0.00016986,2]
[396421869,1764964270387,-6762.23,0.00016986,2]
[396421870,1764964270397,-1977.79,0.00016986,2]
[396421871,1764964270407,-500.0,0.00016986,2]
[396421872,1764964270417,-500.0,0.00016986,2]
[396421873,1764964270426,-500.0,0.00016986,2]
[396421874,1764964270435,-512.63,0.00016986,2]
[396421875,1764964270446,-531.05,0.00016986,2]
[396421876,1764964270455,-500.0,0.00016986,2]
[396421877,1764964270465,-690.27,0.00016986,2]
[396421878,1764964270474,-588.28,0.00016986,2]
[396421879,1764964270484,-500.0,0.00016986,2]
[396421880,1764964270493,-500.0,0.00016986,2]
[396421881,1764964270502,-500.0,0.00016986,2]
[396421882,1764964270511,-500.0,0.00016986,2]
[396421883,1764964270520,-1011.28,0.00016986,2]
[396421884,1764964270529,-6262.41,0.00016986,2]
[396421885,1764964270539,-500.0,0.00016986,2]
[396421886,1764964270547,-2046.2,0.00016986,2]
[396421887,1764964270557,-500.0,0.00016986,2]
[396421888,1764964270566,-2730.7,0.00016986,2]
[396421889,1764964270576,-776.59,0.00016986,2]
[396421890,1764964270585,-632.99,0.00016986,2]
[396421891,1764964270595,-500.0,0.00016986,2]
[396421892,1764964270605,-9293.72,0.00016986,2]
[396421893,1764964270614,-500.0,0.00016986,2]
[396421894,1764964270624,-500.0,0.00016986,2]
[396421895,1764964270633,-1523.9,0.00016986,2]
[396421896,1764964270642,-500.0,0.00016986,2]
[396421897,1764964270652,-2206.65,0.00016986,2]
[396421898,1764964270663,-530.08275811,0.00016986,2]
[396421899,1764964270672,-1216.27,0.00016986,2]
[396421900,1764964270686,-890.47,0.00016986,2]
[396421901,1764964270695,-1517.87,0.00016986,2]
[396421902,1764964270705,-500.0,0.00016986,2]
[396421903,1764964270714,-500.0,0.00016986,2]
[396421904,1764964270723,-678.08,0.00016986,2]
[396421905,1764964270732,-12607.12,0.00016986,2]
[396421906,1764964270741,-1261.52,0.00016986,2]
[396421907,1764964270750,-3411.98,0.00016986,2]
[396421908,1764964270759,-500.0,0.00016986,2]
[396421909,1764964270768,-8433.96,0.00016986,2]
[396421910,1764964270777,-500.0,0.00016986,2]
[396421911,1764964270786,-4594.16,0.00016986,2]
[396421912,1764964270795,-500.0,0.00016986,2]
[396421913,1764964270807,-639.2,0.00016986,2]
[396421914,1764964270816,-601.94,0.00016986,2]
[396421915,1764964270826,-500.0,0.00016986,2]
[396421916,1764964270835,-557.9,0.00016986,2]
[396421917,1764964270844,-768.56,0.00016986,2]
[396421918,1764964270853,-564.07,0.00016986,2]
[396421919,1764964270861,-2955.98,0.00016986,2]
[396421920,1764964270871,-1537.53,0.00016986,2]
[396421921,1764964270879,-1822.27,0.00016986,2]
[396421922,1764964270889,-500.0,0.00016986,2]
[396421923,1764964270898,-500.0,0.00016986,2]
[396421924,1764964270907,-500.0,0.00016986,2]
[396421925,1764964270917,-1145.09,0.00016986,2]
[396421926,1764964270925,-634.27735309,0.00016986,2]
[396421927,1764964270935,-1807.2,0.00016986,2]
[396421928,1764964270944,-3671.84,0.00016986,2]
[396421929,1764964270954,-500.0,0.00016986,2]
[396421930,1764964270963,-1517.42,0.00016986,2]
[396421931,1764964270972,-1021.51,0.00016986,2]
[396421932,1764964270981,-500.0,0.00016986,2]
[396421933,1764964270991,-500.0,0.00016986,2]
[396421934,1764964271003,-1718.3,0.00016986,2]
[396421935,1764964271012,-15606.7,0.00016986,2]
[396421936,1764964271021,-500.0,0.00016986,2]
[396421937,1764964271030,-7505.89,0.00016986,2]
[396421938,1764964271041,-629.93,0.00016986,2]
[396421939,1764964271050,-500.0,0.00016986,2]
[396421940,1764964271059,-500.0,0.00016986,2]
[396421941,1764964271070,-500.0,0.00016986,2]
[396421942,1764964271082,-4537.01,0.00016986,2]
[396421943,1764964271092,-500.0,0.00016986,2]
[396421944,1764964271101,-1340.59,0.00016986,2]
[396421945,1764964271111,-1160.08,0.00016986,2]
[396421946,1764964271121,-500.0,0.00016986,2]
[396421947,1764964271130,-6149.82,0.00016986,2]
[396421948,1764964271139,-2978.24,0.00016986,2]
[396421949,1764964271148,-500.0,0.00016986,2]
[396421950,1764964271158,-566.43,0.00016986,2]
[396421951,1764964271167,-500.0,0.00016986,2]
[396421952,1764964271176,-1483.55,0.00016986,2]
[396421953,1764964271186,-2769.97,0.00016986,2]
[396421954,1764964271195,-1249.37,0.00016986,2]
[396421955,1764964271205,-500.0,0.00016986,2]
[396421956,1764964271214,-500.0,0.00016986,2]
[396421957,1764964271224,-603.32,0.00016986,2]
[396421958,1764964271233,-500.0,0.00016986,2]
[396421959,1764964271243,-500.0,0.00016986,2]
[396421960,1764964271253,-1573.31,0.00016986,2]
[396421961,1764964271262,-2626.61,0.00016986,2]
[396421962,1764964271272,-500.0,0.00016986,2]
[396421963,1764964271282,-5057.213907,0.00016986,2]
[396421964,1764964271293,-500.0,0.00016986,2]
[396421965,1764964271303,-4802.09,0.00016986,2]
[396421966,1764964271314,-500.0,0.00016986,2]
[396421967,1764964271322,-500.0,0.00016986,2]
[396421968,1764964271332,-999.44,0.00016986,2]
[396421969,1764964271341,-1503.75,0.00016986,2]
[396421970,1764964271350,-19450.21,0.00016986,2]
[396421971,1764964271359,-500.0,0.00016986,2]
[396421972,1764964271368,-603.08635053,0.00016986,2]
[396421973,1764964271377,-500.0,0.00016986,2]
[396421974,1764964271387,-1075.02,0.00016986,2]
[396421975,1764964271396,-500.0,0.00016986,2]
[396421976,1764964271406,-500.0,0.00016986,2]
[396421977,1764964271415,-1106.6,0.00016986,2]
[396421978,1764964271424,-500.0,0.00016986,2]
[396421979,1764964271433,-500.0,0.00016986,2]
[396421980,1764964271441,-840.72,0.00016986,2]
[396421981,1764964271451,-500.0,0.00016986,2]
[396421982,1764964271461,-1613.52,0.00016986,2]
[396421983,1764964271470,-500.0,0.00016986,2]
[396421984,1764964271479,-500.0,0.00016986,2]
[396421985,1764964271489,-518.4,0.00016986,2]
[396421986,1764964271499,-500.0,0.00016986,2]
[396421987,1764964271509,-3055.31,0.00016986,2]
[396421988,1764964271519,-994.67,0.00016986,2]
[396421989,1764964271529,-500.0,0.00016986,2]
[396421990,1764964271539,-500.0,0.00016986,2]
[396421991,1764964271548,-994.61,0.00016986,2]
[396421992,1764964271557,-5779.12,0.00016986,2]
[396421993,1764964271566,-500.0,0.00016986,2]
[396421994,1764964271574,-541.54,0.00016986,2]
[396421995,1764964271583,-500.0,0.00016986,2]
[396421996,1764964271592,-2703.83,0.00016986,2]
[396421997,1764964271601,-13490.98,0.00016986,2]
[396421998,1764964271609,-723.64,0.00016986,2]
[396421999,1764964271618,-2375.57,0.00016986,2]
[396422000,1764964271627,-500.0,0.00016986,2]
[396422001,1764964271636,-500.0,0.00016986,2]
[396422002,1764964271644,-500.0,0.00016986,2]
[396422003,1764964271653,-1855.42,0.00016986,2]
[396422004,1764964271662,-1108.58,0.00016986,2]
[396422005,1764964271671,-981.84,0.00016986,2]
[396422006,1764964271680,-500.0,0.00016986,2]
[396422007,1764964271689,-500.0,0.00016986,2]
[396422008,1764964271700,-500.0,0.00016986,2]
[396422009,1764964271709,-8333.33,0.00016986,2]
[396422010,1764964271719,-505.07,0.00016986,2]
[396422011,1764964271729,-3168.21,0.00016986,2]
[396422012,1764964271738,-8522.94,0.00016986,2]
[396422013,1764964271748,-500.0,0.00016986,2]
[396422014,1764964271758,-2974.3,0.00016986,2]
[396422015,1764964271768,-882.76,0.00016986,2]
[396422016,1764964271777,-500.0,0.00016986,2]
[396422017,1764964271787,-500.0,0.00016986,2]
[396422018,1764964271796,-773.39,0.00016986,2]
[396422019,1764964271806,-500.0,0.00016986,2]
[396422020,1764964271816,-500.0,0.00016986,2]
[396422021,1764964271825,-500.0,0.00016986,2]
[396422022,1764964271835,-500.0,0.00016986,2]
[396422023,1764964271844,-1466.62,0.00016986,2]
[396422024,1764964271854,-500.0,0.00016986,2]
[396422025,1764964271863,-500.0,0.00016986,2]
[396422026,1764964271873,-1900.64,0.00016986,2]
[396422027,1764964271882,-5166.32,0.00016986,2]
[396422028,1764964271892,-500.0,0.00016986,2]
[396422029,1764964271901,-559.78,0.00016986,2]
[396422030,1764964271911,-500.0,0.00016986,2]
[396422031,1764964271920,-500.0,0.00016986,2]
[396422032,1764964271931,-579.43,0.00016986,2]
[396422033,1764964271941,-500.0,0.00016986,2]
[396422034,1764964271951,-1126.56,0.00016986,2]
[396422035,1764964271960,-531.72,0.00016986,2]
[396422036,1764964271970,-500.0,0.00016986,2]
[396422037,1764964271979,-1357.94,0.00016986,2]
[396422038,1764964271989,-7493.2,0.00016986,2]
[396422039,1764964272002,-500.0,0.00016986,2]
[396422040,1764964272012,-500.0,0.00016986,2]
[396422041,1764964272023,-2140.67,0.00016986,2]
[396422042,1764964272033,-504.84,0.00016986,2]
[396422043,1764964272043,-500.0,0.00016986,2]
[396422044,1764964272053,-1456.29,0.00016986,2]
[396422045,1764964272063,-500.0,0.00016986,2]
[396422046,1764964272075,-1852.77,0.00016986,2]
[396422047,1764964272086,-5290.3,0.00016986,2]
[396422048,1764964272096,-500.0,0.00016986,2]
[396422049,1764964272105,-18021.5,0.00016986,2]
[396422050,1764964272115,-5946.49,0.00016986,2]
[396422051,1764964272125,-500.0,0.00016986,2]
[396422052,1764964272134,-1141.14,0.00016986,2]
[396422053,1764964272144,-500.0,0.00016986,2]
[396422054,1764964272153,-5755.4,0.00016986,2]
[396422055,1764964272164,-500.0,0.00016986,2]
[396422056,1764964272173,-899.33,0.00016986,2]
[396422057,1764964272183,-500.0,0.00016986,2]
[396422058,1764964272193,-500.0,0.00016986,2]
[396422059,1764964272202,-500.0,0.00016986,2]
[396422060,1764964272212,-500.0,0.00016986,2]
[396422061,1764964272221,-1193.75,0.00016986,2]
[396422062,1764964272231,-500.0,0.00016986,2]
[396422063,1764964272241,-500.0,0.00016986,2]
[396422064,1764964272250,-500.0,0.00016986,2]
[396422065,1764964272260,-18224.67,0.00016986,2]
[396422066,1764964272270,-2555.22,0.00016986,2]
[396422067,1764964272280,-428.79224816,0.00016986,2]
[396422068,1764964272290,-500.0,0.00016986,2]
[396422069,1764964272301,-500.0,0.00016986,2]
[396422070,1764964272312,-15992.22,0.00016986,2]
[396422071,1764964272322,-500.0,0.00016986,2]
[396422072,1764964272332,-500.0,0.00016986,2]
[396422073,1764964272341,-2246.86,0.00016986,2]
[396422074,1764964272351,-500.0,0.00016986,2]
[396422075,1764964272361,-500.0,0.00016986,2]
[396422076,1764964272370,-500.0,0.00016986,2]
[396422077,1764964272380,-500.0,0.00016986,2]
[396422078,1764964272390,-1396.97,0.00016986,2]
[396422079,1764964272400,-699.92,0.00016986,2]
[396422080,1764964272410,-1327.48,0.00016986,2]
[396422081,1764964272419,-3223.39,0.00016986,2]
[396422082,1764964272428,-1347.5,0.00016986,2]
[396422083,1764964272438,-500.0,0.00016986,2]
[396422084,1764964272448,-2513.49,0.00016986,2]
[396422085,1764964272457,-667.1,0.00016986,2]
[396422086,1764964272467,-500.0,0.00016986,2]
[396422087,1764964272476,-500.0,0.00016986,2]
[396422088,1764964272486,-500.0,0.00016986,2]
[396422089,1764964272495,-2175.03,0.00016986,2]
[396422090,1764964272504,-40156.73,0.00016986,2]
[396422091,1764964272514,-906.92,0.00016986,2]
[396422092,1764964272523,-500.0,0.00016986,2]